Workbook

Sheet 怪物规划
A1: index | B1: name | C1: monsterId | D1: race | E1: family | F1: prof | G1: status | H1: level | I1: hurtGrade | J1: survialGrade | K1: attackRange | L1: abilityPosition | M1: ability1 | N1: ability2 | O1: ability3 | P1: ability4 | Q1: tag1 | R1: tag2 | S1: tag3 | T1: tag4 | U1: weight | V1: fightPower
A2: int_key | B2: string | C2: int | D2: string | E2: string | F2: string | G2: string | H2: int | I2: string | J2: string | K2: string | L2: string | M2: string | N2: string | O2: string | P2: string | Q2: string | R2: string | S2: string | T2: string | U2: int | V2: int
A3: c | B3: c | C3: c | D3: c | E3: c | F3: c | G3: c | H3: c | I3: c | J3: c | K3: c | L3: c | M3: c | N3: c | O3: c | P3: c | Q3: c | R3: c | S3: c | T3: c | U3: c | V3: c
A4: 编号 | B4: 名称 | C4: ID | D4: 种族 | E4: 氏族 | F4: 职业 | G4: 身份 | H4: 等级 | I4: 输出评级 | J4: 生存评级 | K4: 射程 | L4: 定位 | M4: 能力1 | N4: 能力2 | O4: 能力3 | P4: 能力4 | Q4: 标签1 | R4: 标签2 | S4: 标签3 | T4: 标签4 | U4: 权重 | V4: 战力
A5: 1 | B5: 小蝙蝠 | C5: 101030 | D5: 妖类 | E5: 蝙蝠族 | F5: 能量 | G5: 仆从 | H5: 3 | I5: F | J5: F | K5: 远程 | L5: 单体输出 | M5: 无 | N5: 无 | O5: 无 | P5: 无 | Q5: 兽类 | R5: 飞行 | S5: 无 | T5: 无 | U5: 50 | V5: =VLOOKUP(H5,[1]怪物强度量化!$B$33:$K$52,IF(怪物规划!G5="仆从",1,IF(怪物规划!G5="普通",2,IF(怪物规划!G5="精英",3,IF(怪物规划!G5="首领",4,0))))+5,FALSE) -> 520
A6: 2 | B6: 中蝙蝠 | C6: 101031 | D6: 妖类 | E6: 蝙蝠族 | F6: 能量 | G6: 普通 | H6: 11 | I6: E | J6: D | K6: 远程 | L6: 单体输出 | M6: 灵魂链接 | N6: 无 | O6: 无 | P6: 无 | Q6: 兽类 | R6: 飞行 | S6: 无 | T6: 无 | U6: 50 | V6: =VLOOKUP(H6,[1]怪物强度量化!$B$33:$K$52,IF(怪物规划!G6="仆从",1,IF(怪物规划!G6="普通",2,IF(怪物规划!G6="精英",3,IF(怪物规划!G6="首领",4,0))))+5,FALSE) -> 3267
A7: 3 | B7: 大蝙蝠 | C7: 101032 | D7: 妖类 | E7: 蝙蝠族 | F7: 能量 | G7: 首领 | H7: 15 | I7: B | J7: B | K7: 远程 | L7: 单体输出 | M7: 灵魂链接 | N7: 召唤 | O7: 无 | P7: 无 | Q7: 兽类 | R7: 飞行 | S7: 无 | T7: 无 | U7: 50 | V7: =VLOOKUP(H7,[1]怪物强度量化!$B$33:$K$52,IF(怪物规划!G7="仆从",1,IF(怪物规划!G7="普通",2,IF(怪物规划!G7="精英",3,IF(怪物规划!G7="首领",4,0))))+5,FALSE) -> 14775
A8: 4 | B8: 小野狼 | C8: 101010 | D8: 妖类 | E8: 狼族 | F8: 先锋 | G8: 仆从 | H8: 3 | I8: F | J8: F | K8: 近程 | L8: 单体输出 | M8: 无 | N8: 无 | O8: 无 | P8: 无 | Q8: 兽类 | R8: 无 | S8: 无 | T8: 无 | U8: 50 | V8: =VLOOKUP(H8,[1]怪物强度量化!$B$33:$K$52,IF(怪物规划!G8="仆从",1,IF(怪物规划!G8="普通",2,IF(怪物规划!G8="精英",3,IF(怪物规划!G8="首领",4,0))))+5,FALSE) -> 520
A9: 5 | B9: 中野狼 | C9: 101011 | D9: 妖类 | E9: 狼族 | F9: 先锋 | G9: 普通 | H9: 11 | I9: C | J9: D | K9: 近程 | L9: 单体输出 | M9: 加攻光环 | N9: 无 | O9: 无 | P9: 无 | Q9: 兽类 | R9: 无 | S9: 无 | T9: 无 | U9: 50 | V9: =VLOOKUP(H9,[1]怪物强度量化!$B$33:$K$52,IF(怪物规划!G9="仆从",1,IF(怪物规划!G9="普通",2,IF(怪物规划!G9="精英",3,IF(怪物规划!G9="首领",4,0))))+5,FALSE) -> 3267
A10: 6 | B10: 大野狼 | C10: 101012 | D10: 妖类 | E10: 狼族 | F10: 先锋 | G10: 首领 | H10: 14 | I10: A | J10: B | K10: 近程 | L10: 单体输出 | M10: 加攻光环 | N10: 召唤 | O10: 无 | P10: 无 | Q10: 兽类 | R10: 无 | S10: 无 | T10: 无 | U10: 50 | V10: =VLOOKUP(H10,[1]怪物强度量化!$B$33:$K$52,IF(怪物规划!G10="仆从",1,IF(怪物规划!G10="普通",2,IF(怪物规划!G10="精英",3,IF(怪物规划!G10="首领",4,0))))+5,FALSE) -> 12217
A11: 7 | B11: 小蜘蛛 | C11: 101020 | D11: 妖类 | E11: 蜘蛛族 | F11: 先锋 | G11: 仆从 | H11: 2 | I11: F | J11: F | K11: 近程 | L11: 单体输出 | M11: 无 | N11: 无 | O11: 无 | P11: 无 | Q11: 兽类 | R11: 无 | S11: 无 | T11: 无 | U11: 50 | V11: =VLOOKUP(H11,[1]怪物强度量化!$B$33:$K$52,IF(怪物规划!G11="仆从",1,IF(怪物规划!G11="普通",2,IF(怪物规划!G11="精英",3,IF(怪物规划!G11="首领",4,0))))+5,FALSE) -> 429
A12: 8 | B12: 中蜘蛛 | C12: 101021 | D12: 妖类 | E12: 蜘蛛族 | F12: 先锋 | G12: 普通 | H12: 11 | I12: E | J12: E | K12: 近程 | L12: 单体输出 | M12: 死亡召唤 | N12: 无 | O12: 无 | P12: 无 | Q12: 兽类 | R12: 无 | S12: 无 | T12: 无 | U12: 50 | V12: =VLOOKUP(H12,[1]怪物强度量化!$B$33:$K$52,IF(怪物规划!G12="仆从",1,IF(怪物规划!G12="普通",2,IF(怪物规划!G12="精英",3,IF(怪物规划!G12="首领",4,0))))+5,FALSE) -> 3267
A13: 9 | B13: 大蜘蛛 | C13: 101022 | D13: 妖类 | E13: 蜘蛛族 | F13: 先锋 | G13: 精英 | H13: 16 | I13: B | J13: B | K13: 近程 | L13: 单体输出 | M13: 死亡召唤 | N13: 无 | O13: 无 | P13: 无 | Q13: 兽类 | R13: 无 | S13: 无 | T13: 无 | U13: 50 | V13: =VLOOKUP(H13,[1]怪物强度量化!$B$33:$K$52,IF(怪物规划!G13="仆从",1,IF(怪物规划!G13="普通",2,IF(怪物规划!G13="精英",3,IF(怪物规划!G13="首领",4,0))))+5,FALSE) -> 11605
A14: 10 | B14: 小矛兵 | C14: 102030 | D14: 妖类 | E14: 恶鬼鼠族 | F14: 射手 | G14: 普通 | H14: 8 | I14: E | J14: E | K14: 远程 | L14: 单体输出 | M14: 加速 | N14: 无 | O14: 无 | P14: 无 | Q14: 兽类 | R14: 无 | S14: 无 | T14: 无 | U14: 50 | V14: =VLOOKUP(H14,[1]怪物强度量化!$B$33:$K$52,IF(怪物规划!G14="仆从",1,IF(怪物规划!G14="普通",2,IF(怪物规划!G14="精英",3,IF(怪物规划!G14="首领",4,0))))+5,FALSE) -> 1842
A15: 11 | B15: 中矛兵 | C15: 102031 | D15: 妖类 | E15: 恶鬼鼠族 | F15: 射手 | G15: 精英 | H15: 10 | I15: B | J15: D | K15: 远程 | L15: 单体输出 | M15: 加速 | N15: 中毒 | O15: 无 | P15: 无 | Q15: 兽类 | R15: 无 | S15: 无 | T15: 无 | U15: 50 | V15: =VLOOKUP(H15,[1]怪物强度量化!$B$33:$K$52,IF(怪物规划!G15="仆从",1,IF(怪物规划!G15="普通",2,IF(怪物规划!G15="精英",3,IF(怪物规划!G15="首领",4,0))))+5,FALSE) -> 3700
A16: 12 | B16: 大投矛手 | C16: 102032 | D16: 妖类 | E16: 恶鬼鼠族 | F16: 射手 | G16: 首领 | H16: 12 | I16: A+ | J16: B | K16: 远程 | L16: 直线输出 | M16: 加速 | N16: 中毒 | O16: 穿透 | P16: 无 | Q16: 兽类 | R16: 无 | S16: 无 | T16: 无 | U16: 50 | V16: =VLOOKUP(H16,[1]怪物强度量化!$B$33:$K$52,IF(怪物规划!G16="仆从",1,IF(怪物规划!G16="普通",2,IF(怪物规划!G16="精英",3,IF(怪物规划!G16="首领",4,0))))+5,FALSE) -> 8345
A17: 13 | B17: 小石头人 | C17: 102010 | D17: 神族 | E17: 石头傀儡 | F17: 坦克 | G17: 精英 | H17: 11 | I17: C | J17: A | K17: 近程 | L17: 肉盾 | M17: 圆形aoe | N17: 无 | O17: 无 | P17: 无 | Q17: 神 | R17: 无 | S17: 无 | T17: 无 | U17: 50 | V17: =VLOOKUP(H17,[1]怪物强度量化!$B$33:$K$52,IF(怪物规划!G17="仆从",1,IF(怪物规划!G17="普通",2,IF(怪物规划!G17="精英",3,IF(怪物规划!G17="首领",4,0))))+5,FALSE) -> 4477
A18: 14 | B18: 寒晶傀儡 | C18: 102013 | D18: 神族 | E18: 石头傀儡 | F18: 坦克 | G18: 精英 | H18: 11 | I18: C | J18: A | K18: 近程 | L18: 肉盾 | M18: 圆形aoe | N18: 降攻击者攻速 | O18: 无 | P18: 无 | Q18: 神 | R18: 无 | S18: 无 | T18: 无 | U18: 50 | V18: =VLOOKUP(H18,[1]怪物强度量化!$B$33:$K$52,IF(怪物规划!G18="仆从",1,IF(怪物规划!G18="普通",2,IF(怪物规划!G18="精英",3,IF(怪物规划!G18="首领",4,0))))+5,FALSE) -> 4477
A19: 15 | B19: 弱点机 | C19: 103008 | D19: 人族 | E19: 机械 | F19: 能量 | G19: 普通 | H19: 5 | I19: C | J19: E | K19: 远程 | L19: 单体输出 | M19: 易伤 | N19: 无 | O19: 无 | P19: 无 | Q19: 机械 | R19: 无 | S19: 无 | T19: 无 | U19: 50 | V19: =VLOOKUP(H19,[1]怪物强度量化!$B$33:$K$52,IF(怪物规划!G19="仆从",1,IF(怪物规划!G19="普通",2,IF(怪物规划!G19="精英",3,IF(怪物规划!G19="首领",4,0))))+5,FALSE) -> 1035
A20: 16 | B20: 自爆机 | C20: 103007 | D20: 人族 | E20: 机械 | F20: 能量 | G20: 普通 | H20: 6 | I20: E | J20: F | K20: 远程 | L20: 单体输出 | M20: 半血自爆 | N20: 无 | O20: 无 | P20: 无 | Q20: 机械 | R20: 无 | S20: 无 | T20: 无 | U20: 50 | V20: =VLOOKUP(H20,[1]怪物强度量化!$B$33:$K$52,IF(怪物规划!G20="仆从",1,IF(怪物规划!G20="普通",2,IF(怪物规划!G20="精英",3,IF(怪物规划!G20="首领",4,0))))+5,FALSE) -> 1252
A21: 17 | B21: 啄木鸟 | C21: 103009 | D21: 人族 | E21: 机械 | F21: 能量 | G21: 普通 | H21: 8 | I21: C | J21: E | K21: 远程 | L21: 扇形输出 | M21: 扇形aoe | N21: 无 | O21: 无 | P21: 无 | Q21: 机械 | R21: 无 | S21: 无 | T21: 无 | U21: 50 | V21: =VLOOKUP(H21,[1]怪物强度量化!$B$33:$K$52,IF(怪物规划!G21="仆从",1,IF(怪物规划!G21="普通",2,IF(怪物规划!G21="精英",3,IF(怪物规划!G21="首领",4,0))))+5,FALSE) -> 1842
A22: 18 | B22: 维修机 | C22: 103012 | D22: 人族 | E22: 机械 | F22: 辅助 | G22: 普通 | H22: 8 | I22: F | J22: E | K22: 远程 | L22: 单体治疗 | M22: 单体加血 | N22: 无 | O22: 无 | P22: 无 | Q22: 机械 | R22: 无 | S22: 无 | T22: 无 | U22: 50 | V22: =VLOOKUP(H22,[1]怪物强度量化!$B$33:$K$52,IF(怪物规划!G22="仆从",1,IF(怪物规划!G22="普通",2,IF(怪物规划!G22="精英",3,IF(怪物规划!G22="首领",4,0))))+5,FALSE) -> 1842
A23: 19 | B23: 神枪手 | C23: 103011 | D23: 人族 | E23: 人族 | F23: 射手 | G23: 普通 | H23: 7 | I23: C | J23: E | K23: 远程 | L23: 单体输出 | M23: 狙击后排 | N23: 无 | O23: 无 | P23: 无 | Q23: 人型生物 | R23: 无 | S23: 无 | T23: 无 | U23: 50 | V23: =VLOOKUP(H23,[1]怪物强度量化!$B$33:$K$52,IF(怪物规划!G23="仆从",1,IF(怪物规划!G23="普通",2,IF(怪物规划!G23="精英",3,IF(怪物规划!G23="首领",4,0))))+5,FALSE) -> 1519
A24: 20 | B24: 枪盾兵 | C24: 103006 | D24: 人族 | E24: 人族 | F24: 坦克 | G24: 普通 | H24: 10 | I24: E | J24: C | K24: 近程 | L24: 肉盾 | M24: 举盾减伤 | N24: 无 | O24: 无 | P24: 无 | Q24: 人型生物 | R24: 无 | S24: 无 | T24: 无 | U24: 50 | V24: =VLOOKUP(H24,[1]怪物强度量化!$B$33:$K$52,IF(怪物规划!G24="仆从",1,IF(怪物规划!G24="普通",2,IF(怪物规划!G24="精英",3,IF(怪物规划!G24="首领",4,0))))+5,FALSE) -> 2700
A25: 21 | B25: 枪骑兵 | C25: 103010 | D25: 人族 | E25: 人族 | F25: 先锋 | G25: 普通 | H25: 9 | I25: D | J25: C | K25: 近程 | L25: 半肉半C | M25: 扇形击倒 | N25: 无 | O25: 无 | P25: 无 | Q25: 人型生物 | R25: 无 | S25: 无 | T25: 无 | U25: 50 | V25: =VLOOKUP(H25,[1]怪物强度量化!$B$33:$K$52,IF(怪物规划!G25="仆从",1,IF(怪物规划!G25="普通",2,IF(怪物规划!G25="精英",3,IF(怪物规划!G25="首领",4,0))))+5,FALSE) -> 2231
A26: 22 | B26: 饿鬼鼠 | C26: 103002 | D26: 妖族 | E26: 妖族 | F26: 坦克 | G26: 普通 | H26: 13 | R26: 无 | S26: 无 | T26: 无 | U26: 50 | V26: 4783
A27: 23 | B27: 冲锋骑 | C27: 102033 | D27: 人族 | E27: 人族 | F27: 先锋 | G27: 普通 | H27: 9 | R27: 无 | S27: 无 | T27: 无 | U27: 50 | V27: 2231
A28: 24 | B28: 小蜉蝣 | C28: 102034 | D28: 神族 | E28: 神族 | F28: 能量 | G28: 精英 | H28: 9 | R28: 无 | S28: 无 | T28: 无 | U28: 50 | V28: 3057
A29: 25 | B29: 中蜉蝣 | C29: 102035 | D29: 神族 | E29: 神族 | F29: 射手 | G29: 普通 | H29: 12 | R29: 无 | S29: 无 | T29: 无 | U29: 50 | V29: 3953
A30: 26 | B30: 黑天师 | C30: 102037 | D30: 神族 | E30: 神族 | F30: 能量 | G30: 普通 | H30: 11 | R30: 无 | S30: 无 | T30: 无 | U30: 50 | V30: 3267
A31: 27 | B31: 红天师 | C31: 102038 | D31: 神族 | E31: 神族 | F31: 能量 | G31: 精英 | H31: 12 | R31: 无 | S31: 无 | T31: 无 | U31: 100 | V31: 5417
A32: 28 | B32: 巨鲸 | C32: 102039 | D32: 神族 | E32: 神族 | F32: 射手 | G32: 普通 | H32: 14 | R32: 无 | S32: 无 | T32: 无 | U32: 50 | V32: 5787
A33: 29 | B33: 重炮蛛英雄 | C33: 113010 | D33: 人族 | E33: 人族 | F33: 射手 | G33: 英雄 | H33: 10 | R33: 无 | S33: 无 | T33: 无 | U33: 50 | V33: 5200
A34: 30 | B34: 军医英雄 | C34: 113020 | D34: 人族 | E34: 人族 | F34: 辅助 | G34: 英雄 | H34: 10 | R34: 无 | S34: 无 | T34: 无 | U34: 50 | V34: 5200
A35: 31 | B35: 圣光护卫英雄 | C35: 113040 | D35: 人族 | E35: 人族 | F35: 坦克 | G35: 英雄 | H35: 10 | R35: 无 | S35: 无 | T35: 无 | U35: 50 | V35: 4700
A36: 32 | B36: 斗武神英雄 | C36: 113050 | D36: 人族 | E36: 人族 | F36: 先锋 | G36: 英雄 | H36: 10 | R36: 无 | S36: 无 | T36: 无 | U36: 50 | V36: 5200
A37: 33 | B37: 铁巨神英雄 | C37: 113060 | D37: 人族 | E37: 人族 | F37: 能量 | G37: 英雄 | H37: 10 | R37: 无 | S37: 无 | T37: 无 | U37: 50 | V37: 4700
A38: 34 | B38: 雷震子英雄 | C38: 123020 | D38: 神族 | E38: 神族 | F38: 射手 | G38: 英雄 | H38: 10 | R38: 无 | S38: 无 | T38: 无 | U38: 50 | V38: 5200
A39: 35 | B39: 轮回金刚英雄 | C39: 123030 | D39: 神族 | E39: 神族 | F39: 坦克 | G39: 英雄 | H39: 10 | R39: 无 | S39: 无 | T39: 无 | U39: 50 | V39: 4700
A40: 36 | B40: 翔龙英雄 | C40: 123040 | D40: 神族 | E40: 神族 | F40: 能量 | G40: 英雄 | H40: 10 | R40: 无 | S40: 无 | T40: 无 | U40: 50 | V40: 4700
A41: 37 | B41: 十方侍卫英雄 | C41: 123070 | D41: 神族 | E41: 神族 | F41: 辅助 | G41: 英雄 | H41: 10 | R41: 无 | S41: 无 | T41: 无 | U41: 50 | V41: 4700
A42: 38 | B42: 狼武者英雄 | C42: 133010 | D42: 妖族 | E42: 妖族 | F42: 先锋 | G42: 英雄 | H42: 10 | R42: 无 | S42: 无 | T42: 无 | U42: 50 | V42: 4700
A43: 39 | B43: 神射虎英雄 | C43: 133020 | D43: 妖族 | E43: 妖族 | F43: 射手 | G43: 英雄 | H43: 10 | R43: 无 | S43: 无 | T43: 无 | U43: 50 | V43: 5200
A44: 40 | B44: 巨齿象英雄 | C44: 133030 | D44: 妖族 | E44: 妖族 | F44: 坦克 | G44: 英雄 | H44: 10 | R44: 无 | S44: 无 | T44: 无 | U44: 50 | V44: 4700
A45: 41 | B45: 禅师熊猫英雄 | C45: 133050 | D45: 妖族 | E45: 妖族 | F45: 辅助 | G45: 英雄 | H45: 10 | R45: 无 | S45: 无 | T45: 无 | U45: 50 | V45: 4700

Sheet Sheet1
C2: 总数 | D2: 仆从 | E2: 普通 | F2: 精英 | G2: 首领 | H2: 英雄
B3: 坦克 | C3: =COUNTIF(怪物规划!$F$5:$F$45,B3) -> 7 | D3: =COUNTIFS(怪物规划!$F$5:$F$45,B3,怪物规划!$G$5:$G$45,$D$2) -> 0 | E3: =COUNTIFS(怪物规划!$F$5:$F$45,B3,怪物规划!$G$5:$G$45,$E$2) -> 2 | F3: =COUNTIFS(怪物规划!$F$5:$F$45,B3,怪物规划!$G$5:$G$45,$F$2) -> 2 | G3: =COUNTIFS(怪物规划!$F$5:$F$45,B3,怪物规划!$G$5:$G$45,$G$2) -> 0 | H3: =COUNTIFS(怪物规划!$F$5:$F$45,B3,怪物规划!$G$5:$G$45,$H$2) -> 3 | J3: 3
B4: 先锋 | C4: =COUNTIF(怪物规划!$F$5:$F$45,B4) -> 10 | D4: =COUNTIFS(怪物规划!$F$5:$F$45,B4,怪物规划!$G$5:$G$45,$D$2) -> 2 | E4: =COUNTIFS(怪物规划!$F$5:$F$45,B4,怪物规划!$G$5:$G$45,$E$2) -> 4 | F4: =COUNTIFS(怪物规划!$F$5:$F$45,B4,怪物规划!$G$5:$G$45,$F$2) -> 1 | G4: =COUNTIFS(怪物规划!$F$5:$F$45,B4,怪物规划!$G$5:$G$45,$G$2) -> 1 | H4: =COUNTIFS(怪物规划!$F$5:$F$45,B4,怪物规划!$G$5:$G$45,$H$2) -> 2 | J4: 3
B5: 刺客 | C5: =COUNTIF(怪物规划!$F$5:$F$45,B5) -> 0 | D5: =COUNTIFS(怪物规划!$F$5:$F$45,B5,怪物规划!$G$5:$G$45,$D$2) -> 0 | E5: =COUNTIFS(怪物规划!$F$5:$F$45,B5,怪物规划!$G$5:$G$45,$E$2) -> 0 | F5: =COUNTIFS(怪物规划!$F$5:$F$45,B5,怪物规划!$G$5:$G$45,$F$2) -> 0 | G5: =COUNTIFS(怪物规划!$F$5:$F$45,B5,怪物规划!$G$5:$G$45,$G$2) -> 0 | H5: =COUNTIFS(怪物规划!$F$5:$F$45,B5,怪物规划!$G$5:$G$45,$H$2) -> 0
B6: 射手 | C6: =COUNTIF(怪物规划!$F$5:$F$45,B6) -> 9 | D6: =COUNTIFS(怪物规划!$F$5:$F$45,B6,怪物规划!$G$5:$G$45,$D$2) -> 0 | E6: =COUNTIFS(怪物规划!$F$5:$F$45,B6,怪物规划!$G$5:$G$45,$E$2) -> 4 | F6: =COUNTIFS(怪物规划!$F$5:$F$45,B6,怪物规划!$G$5:$G$45,$F$2) -> 1 | G6: =COUNTIFS(怪物规划!$F$5:$F$45,B6,怪物规划!$G$5:$G$45,$G$2) -> 1 | H6: =COUNTIFS(怪物规划!$F$5:$F$45,B6,怪物规划!$G$5:$G$45,$H$2) -> 3 | J6: 3
B7: 辅助 | C7: =COUNTIF(怪物规划!$F$5:$F$45,B7) -> 4 | D7: =COUNTIFS(怪物规划!$F$5:$F$45,B7,怪物规划!$G$5:$G$45,$D$2) -> 0 | E7: =COUNTIFS(怪物规划!$F$5:$F$45,B7,怪物规划!$G$5:$G$45,$E$2) -> 1 | F7: =COUNTIFS(怪物规划!$F$5:$F$45,B7,怪物规划!$G$5:$G$45,$F$2) -> 0 | G7: =COUNTIFS(怪物规划!$F$5:$F$45,B7,怪物规划!$G$5:$G$45,$G$2) -> 0 | H7: =COUNTIFS(怪物规划!$F$5:$F$45,B7,怪物规划!$G$5:$G$45,$H$2) -> 3 | J7: 3
B8: 能量 | C8: =COUNTIF(怪物规划!$F$5:$F$45,B8) -> 11 | D8: =COUNTIFS(怪物规划!$F$5:$F$45,B8,怪物规划!$G$5:$G$45,$D$2) -> 1 | E8: =COUNTIFS(怪物规划!$F$5:$F$45,B8,怪物规划!$G$5:$G$45,$E$2) -> 5 | F8: =COUNTIFS(怪物规划!$F$5:$F$45,B8,怪物规划!$G$5:$G$45,$F$2) -> 2 | G8: =COUNTIFS(怪物规划!$F$5:$F$45,B8,怪物规划!$G$5:$G$45,$G$2) -> 1 | H8: =COUNTIFS(怪物规划!$F$5:$F$45,B8,怪物规划!$G$5:$G$45,$H$2) -> 2 | J8: 2
